[Event "*** Titled Tuesday Blitz"]
[Site "Chess.com"]
[Date "2020.03.03"]
[Round "3"]
[White "Man-Chuk"]
[Black "marcodobrikov"]
[Result "1-0"]
[WhiteElo "2794"]
[BlackElo "2565"]
[TimeControl "180+1"]
[EndTime "13:32:04 PST"]
[Termination "Man-Chuk won by resignation"]

1. d4 {[%clk 0:03:00.9]} 1... Nf6 {[%clk 0:02:59.3]} 2. c4 {[%clk 0:02:54.4]}
2... g6 {[%clk 0:02:59.8]} 3. Nc3 {[%clk 0:02:51]} 3... d5 {[%clk 0:02:59.8]} 4.
Nf3 {[%clk 0:02:51.4]} 4... Bg7 {[%clk 0:02:59.7]} 5. h4 {[%clk 0:02:52]} 5...
h6 {[%clk 0:02:58.6]} 6. cxd5 {[%clk 0:02:48.2]} 6... Nxd5 {[%clk 0:02:58]} 7.
e4 {[%clk 0:02:48.7]} 7... Nxc3 {[%clk 0:02:57.9]} 8. bxc3 {[%clk 0:02:49.6]}
8... c5 {[%clk 0:02:58.8]} 9. Be3 {[%clk 0:02:47.7]} 9... Qa5 {[%clk 0:02:57.1]}
10. Qd2 {[%clk 0:02:43]} 10... O-O {[%clk 0:02:53.5]} 11. Rc1 {[%clk 0:02:38.1]}
11... cxd4 {[%clk 0:02:51.7]} 12. cxd4 {[%clk 0:02:37.5]} 12... Qxd2+ {[%clk
0:02:51.7]} 13. Bxd2 {[%clk 0:02:37]} 13... Bg4 {[%clk 0:02:44.1]} 14. d5 {[%clk
0:02:23.5]} 14... Bxf3 {[%clk 0:02:34.6]} 15. gxf3 {[%clk 0:02:23.2]} 15... Nd7
{[%clk 0:02:31.4]} 16. Bh3 {[%clk 0:02:19.5]} 16... Nb6 {[%clk 0:02:23.8]} 17.
Rc7 {[%clk 0:02:16.7]} 17... Bf6 {[%clk 0:02:08.4]} 18. Ke2 {[%clk 0:02:10.1]}
18... Kg7 {[%clk 0:02:03.2]} 19. Rxb7 {[%clk 0:02:02.6]} 19... Nc4 {[%clk
0:01:58.5]} 20. Bf4 {[%clk 0:01:53]} 20... Bxh4 {[%clk 0:01:49.8]} 21. Bg4
{[%clk 0:01:42.8]} 21... Bg5 {[%clk 0:01:49.1]} 22. Bxg5 {[%clk 0:01:39.1]}
22... hxg5 {[%clk 0:01:50]} 23. Rc1 {[%clk 0:01:35.9]} 23... Ne5 {[%clk
0:01:39.9]} 24. Rxe7 {[%clk 0:01:33.8]} 24... Kf6 {[%clk 0:01:40.2]} 25. Rb7
{[%clk 0:01:26.5]} 25... Rfb8 {[%clk 0:01:34.7]} 26. Rcc7 {[%clk 0:01:14]} 26...
Rxb7 {[%clk 0:01:34.8]} 27. Rxb7 {[%clk 0:01:14.9]} 27... a5 {[%clk 0:01:30.7]}
28. a4 {[%clk 0:01:11.6]} 28... Nc4 {[%clk 0:01:20.1]} 29. Kd3 {[%clk 0:00:57]}
29... Nd6 {[%clk 0:01:15.4]} 30. Rb6 {[%clk 0:00:42.4]} 30... Ke5 {[%clk
0:01:14.6]} 31. Bd7 {[%clk 0:00:37.7]} 31... Rh8 {[%clk 0:00:58.4]} 32. Ra6
{[%clk 0:00:37.5]} 32... Rb8 {[%clk 0:00:53]} 33. Rxa5 {[%clk 0:00:27.1]} 33...
Rb3+ {[%clk 0:00:52.6]} 34. Ke2 {[%clk 0:00:25.8]} 34... Rb2+ {[%clk 0:00:48.4]}
35. Kf1 {[%clk 0:00:25.8]} 35... Kf4 {[%clk 0:00:47.8]} 36. Kg2 {[%clk
0:00:26.2]} 36... f5 {[%clk 0:00:44.9]} 37. exf5 {[%clk 0:00:22.1]} 37... gxf5
{[%clk 0:00:44]} 38. Rc5 {[%clk 0:00:22.5]} 38... Ra2 {[%clk 0:00:42.1]} 39. a5
{[%clk 0:00:22.3]} 39... Ke5 {[%clk 0:00:35.3]} 40. Bc6 {[%clk 0:00:17.1]} 40...
Kd4 {[%clk 0:00:33.7]} 41. Rc1 {[%clk 0:00:13.3]} 41... Rxa5 {[%clk 0:00:34.2]}
42. Rh1 {[%clk 0:00:13.3]} 42... Ra7 {[%clk 0:00:24.1]} 43. Rh6 {[%clk
0:00:13.3]} 43... Kc5 {[%clk 0:00:23]} 44. Rg6 {[%clk 0:00:12.2]} 44... Nf7
{[%clk 0:00:22.2]} 45. Rg7 {[%clk 0:00:10.7]} 45... Re7 {[%clk 0:00:20]} 46. f4
{[%clk 0:00:08.6]} 46... gxf4 {[%clk 0:00:18.6]} 47. Rh7 {[%clk 0:00:08.1]}
47... Kd6 {[%clk 0:00:18.7]} 48. Rg7 {[%clk 0:00:07.4]} 48... Ne5 {[%clk
0:00:18.1]} 49. Rg5 {[%clk 0:00:07.8]} 49... Rf7 {[%clk 0:00:17.5]} 50. Ba4
{[%clk 0:00:05.6]} 50... Rf6 {[%clk 0:00:17.3]} 51. Bb3 {[%clk 0:00:04.7]} 51...
Ng4 {[%clk 0:00:15.6]} 52. Bc2 {[%clk 0:00:04.3]} 52... Ke5 {[%clk 0:00:14.8]}
53. d6 {[%clk 0:00:03.9]} 53... Kxd6 {[%clk 0:00:12.7]} 54. Bxf5 {[%clk
0:00:04.4]} 54... Nh6 {[%clk 0:00:12.7]} 55. Be4 {[%clk 0:00:04.8]} 55... Ke6
{[%clk 0:00:11.6]} 56. Kf3 {[%clk 0:00:05.3]} 56... Nf7 {[%clk 0:00:10.2]} 57.
Bd5+ {[%clk 0:00:05.9]} 57... Ke7 {[%clk 0:00:10]} 58. Rg7 {[%clk 0:00:05.3]}
58... Kf8 {[%clk 0:00:06.4]} 59. Rxf7+ {[%clk 0:00:05.8]} 59... Rxf7 {[%clk
0:00:06.5]} 60. Bxf7 {[%clk 0:00:06.7]} 60... Kxf7 {[%clk 0:00:07.4]} 61. Kxf4
{[%clk 0:00:07.6]} 61... Kf6 {[%clk 0:00:08.3]} 62. f3 {[%clk 0:00:07.8]} 62...
Kg6 {[%clk 0:00:07.9]} 63. Ke5 {[%clk 0:00:08]} 63... Kg7 {[%clk 0:00:08.4]} 64.
Ke6 {[%clk 0:00:07.8]} 64... Kf8 {[%clk 0:00:07]} 65. Kf6 {[%clk 0:00:07.4]}
65... Ke8 {[%clk 0:00:06.7]} 66. f4 {[%clk 0:00:07.9]} 66... Kf8 {[%clk
0:00:06.8]} 67. f5 {[%clk 0:00:08.4]} 67... Kg8 {[%clk 0:00:07.4]} 68. Ke7
{[%clk 0:00:08.6]} 1-0

[Event "*** Titled Tuesday Blitz"]
[Site "Chess.com"]
[Date "2020.03.03"]
[Round "3"]
[White "Hadza_3"]
[Black "RitvarsReimanis"]
[Result "0-1"]
[WhiteElo "2388"]
[BlackElo "2628"]
[TimeControl "180+1"]
[EndTime "13:32:04 PST"]
[Termination "RitvarsReimanis won by checkmate"]

1. e4 {[%clk 0:03:00.9]} 1... c5 {[%clk 0:02:59.6]} 2. Nc3 {[%clk 0:03:00.4]}
2... Nc6 {[%clk 0:02:59.8]} 3. f4 {[%clk 0:02:58.9]} 3... g6 {[%clk 0:02:57.4]}
4. Nf3 {[%clk 0:02:58.8]} 4... Bg7 {[%clk 0:02:57.5]} 5. Bc4 {[%clk 0:02:58.8]}
5... Rb8 {[%clk 0:02:55.2]} 6. O-O {[%clk 0:02:57.2]} 6... Nd4 {[%clk
0:02:52.2]} 7. Nxd4 {[%clk 0:02:53.8]} 7... cxd4 {[%clk 0:02:52.4]} 8. Ne2
{[%clk 0:02:54]} 8... b5 {[%clk 0:02:49]} 9. Bb3 {[%clk 0:02:49.6]} 9... a5
{[%clk 0:02:46.7]} 10. a4 {[%clk 0:02:47.1]} 10... b4 {[%clk 0:02:45.3]} 11. d3
{[%clk 0:02:46.9]} 11... Nf6 {[%clk 0:02:39.4]} 12. Nxd4 {[%clk 0:01:26.6]}
12... Ba6 {[%clk 0:02:31]} 13. e5 {[%clk 0:01:19.4]} 13... Ng8 {[%clk
0:02:24.3]} 14. Be3 {[%clk 0:01:16]} 14... Nh6 {[%clk 0:02:24.1]} 15. f5 {[%clk
0:01:12.9]} 15... Bxe5 {[%clk 0:01:58.6]} 16. fxg6 {[%clk 0:01:08.9]} 16... hxg6
{[%clk 0:01:57.9]} 17. Nf3 {[%clk 0:00:57.7]} 17... Bxb2 {[%clk 0:01:49.3]} 18.
Bxh6 {[%clk 0:00:53]} 18... Rxh6 {[%clk 0:01:49.1]} 19. Ng5 {[%clk 0:00:40.5]}
19... Qb6+ {[%clk 0:01:46.9]} 20. Kh1 {[%clk 0:00:37.2]} 20... f6 {[%clk
0:01:43]} 21. Ne4 {[%clk 0:00:33.1]} 21... Be5 {[%clk 0:01:35.9]} 22. h3 {[%clk
0:00:32.2]} 22... Bb7 {[%clk 0:01:30.1]} 23. Rb1 {[%clk 0:00:28.2]} 23... d5
{[%clk 0:01:24.1]} 24. Nf2 {[%clk 0:00:25.5]} 24... d4 {[%clk 0:01:23.9]} 25.
Qg4 {[%clk 0:00:24.3]} 25... Bc8 {[%clk 0:01:09.5]} 26. Qf3 {[%clk 0:00:23.2]}
26... Qb7 {[%clk 0:01:06.5]} 27. Qxb7 {[%clk 0:00:19.9]} 27... Bxb7 {[%clk
0:01:06.3]} 28. Ne4 {[%clk 0:00:20.8]} 28... Rc8 {[%clk 0:01:01.4]} 29. Rbe1
{[%clk 0:00:19.9]} 29... Kd7 {[%clk 0:00:57]} 30. Bc4 {[%clk 0:00:17.7]} 30...
Kc7 {[%clk 0:00:40.5]} 31. Nc5 {[%clk 0:00:16.2]} 31... Rxh3+ {[%clk 0:00:34.7]}
32. Kg1 {[%clk 0:00:16.5]} 32... Bh2+ {[%clk 0:00:35.3]} 33. Kf2 {[%clk
0:00:16.4]} 33... Bg3+ {[%clk 0:00:35.3]} 34. Kg1 {[%clk 0:00:16.5]} 34... Bxe1
{[%clk 0:00:34.3]} 35. Nxb7 {[%clk 0:00:16.8]} 35... Re3 {[%clk 0:00:32.2]} 36.
Nxa5 {[%clk 0:00:14.8]} 36... Bg3 {[%clk 0:00:31]} 37. Nb3 {[%clk 0:00:14.4]}
37... e5 {[%clk 0:00:29.9]} 38. Nd2 {[%clk 0:00:12.7]} 38... Re1 {[%clk
0:00:28]} 39. Rxe1 {[%clk 0:00:11.8]} 39... Bxe1 {[%clk 0:00:28.9]} 40. Ne4
{[%clk 0:00:12.7]} 40... f5 {[%clk 0:00:25.4]} 41. Nc5 {[%clk 0:00:13.1]} 41...
Ra8 {[%clk 0:00:23.1]} 42. Ne6+ {[%clk 0:00:14]} 42... Kd6 {[%clk 0:00:22.7]}
43. Bb3 {[%clk 0:00:14.9]} 43... Bd2 {[%clk 0:00:21]} 44. Kf1 {[%clk 0:00:15.1]}
44... Bh6 {[%clk 0:00:20.2]} 45. Ke2 {[%clk 0:00:15.3]} 45... Re8 {[%clk
0:00:19.8]} 46. a5 {[%clk 0:00:11]} 46... Ra8 {[%clk 0:00:19.7]} 47. a6 {[%clk
0:00:07.9]} 47... Rxa6 {[%clk 0:00:19.2]} 48. Nd8 {[%clk 0:00:08.8]} 48... Be3
{[%clk 0:00:16.6]} 49. Kf3 {[%clk 0:00:07.6]} 49... Ra8 {[%clk 0:00:15.9]} 50.
Nf7+ {[%clk 0:00:07.6]} 50... Kc5 {[%clk 0:00:14.9]} 51. Nxe5 {[%clk 0:00:07.6]}
51... Ra1 {[%clk 0:00:14.3]} 52. Nxg6 {[%clk 0:00:07.5]} 52... Rf1+ {[%clk
0:00:13.7]} 53. Kg3 {[%clk 0:00:06.8]} 53... f4+ {[%clk 0:00:13.3]} 54. Kg4
{[%clk 0:00:07.1]} 54... Rf2 {[%clk 0:00:14.2]} 55. Kh3 {[%clk 0:00:07.3]} 55...
Kd6 {[%clk 0:00:13.1]} 56. Nh4 {[%clk 0:00:06.8]} 56... Bc1 {[%clk 0:00:11.9]}
57. Nf3 {[%clk 0:00:07.7]} 57... Be3 {[%clk 0:00:11.5]} 58. Nh4 {[%clk 0:00:08]}
58... Ke7 {[%clk 0:00:11.5]} 59. Nf3 {[%clk 0:00:08.3]} 59... Kf6 {[%clk
0:00:12.1]} 60. Nh2 {[%clk 0:00:07.9]} 60... Rd2 {[%clk 0:00:11]} 61. Ng4+
{[%clk 0:00:07.5]} 61... Kg5 {[%clk 0:00:11.4]} 62. Nh2 {[%clk 0:00:08.4]} 62...
Rd1 {[%clk 0:00:11.8]} 63. Nf3+ {[%clk 0:00:09.3]} 63... Kh5 {[%clk 0:00:10.7]}
64. Nh2 {[%clk 0:00:09.5]} 64... Rh1 {[%clk 0:00:10.7]} 65. Bc4 {[%clk
0:00:08.9]} 65... Bg1 {[%clk 0:00:10.6]} 66. Bf7+ {[%clk 0:00:07.2]} 66... Kh6
{[%clk 0:00:10]} 67. Kg4 {[%clk 0:00:06.4]} 67... Bxh2 {[%clk 0:00:10.2]} 68.
Kf3 {[%clk 0:00:07.3]} 68... Bg3 {[%clk 0:00:10.7]} 69. Bb3 {[%clk 0:00:07.5]}
69... Rb1 {[%clk 0:00:11.2]} 70. Ke2 {[%clk 0:00:07.6]} 70... Kg5 {[%clk
0:00:11.4]} 71. Kf3 {[%clk 0:00:08.5]} 71... Re1 {[%clk 0:00:11.6]} 72. Bd5
{[%clk 0:00:07.5]} 72... Re3# {[%clk 0:00:12.5]} 0-1

[Event "*** Titled Tuesday Blitz"]
[Site "Chess.com"]
[Date "2020.03.03"]
[Round "3"]
[White "silverback96"]
[Black "enriquetejedor"]
[Result "0-1"]
[WhiteElo "2037"]
[BlackElo "2537"]
[TimeControl "180+1"]
[EndTime "13:32:07 PST"]
[Termination "enriquetejedor won on time"]

1. d4 {[%clk 0:03:00.9]} 1... Nf6 {[%clk 0:02:49.4]} 2. c4 {[%clk 0:03:00.7]}
2... c5 {[%clk 0:02:47.5]} 3. d5 {[%clk 0:02:59.9]} 3... b5 {[%clk 0:02:46.9]}
4. cxb5 {[%clk 0:03:00.8]} 4... a6 {[%clk 0:02:46.8]} 5. e3 {[%clk 0:02:56.6]}
5... axb5 {[%clk 0:02:44.3]} 6. Bxb5 {[%clk 0:02:55.3]} 6... Ba6 {[%clk
0:02:36.3]} 7. Nc3 {[%clk 0:02:24.4]} 7... Bxb5 {[%clk 0:02:32.6]} 8. Nxb5
{[%clk 0:02:25.3]} 8... d6 {[%clk 0:02:32.8]} 9. a4 {[%clk 0:02:20.3]} 9... g6
{[%clk 0:02:31.4]} 10. Ne2 {[%clk 0:02:19.4]} 10... Bg7 {[%clk 0:02:31.5]} 11.
Nec3 {[%clk 0:02:19.3]} 11... O-O {[%clk 0:02:31.6]} 12. O-O {[%clk 0:02:19.1]}
12... Na6 {[%clk 0:02:28.1]} 13. e4 {[%clk 0:02:18.5]} 13... Nc7 {[%clk
0:02:13.1]} 14. Qc2 {[%clk 0:02:06.8]} 14... Nfe8 {[%clk 0:02:07.5]} 15. Bd2
{[%clk 0:02:03.6]} 15... Nxb5 {[%clk 0:02:03.5]} 16. Nxb5 {[%clk 0:02:04.5]}
16... Nc7 {[%clk 0:02:03.8]} 17. Nxc7 {[%clk 0:02:04.2]} 17... Qxc7 {[%clk
0:02:04.7]} 18. Bc3 {[%clk 0:02:04.6]} 18... Bxc3 {[%clk 0:02:04.8]} 19. Qxc3
{[%clk 0:02:05.5]} 19... Rfb8 {[%clk 0:02:02.6]} 20. Rfb1 {[%clk 0:01:54.4]}
20... Rb4 {[%clk 0:02:02.3]} 21. b3 {[%clk 0:01:41.2]} 21... Rxe4 {[%clk
0:01:58.7]} 22. Re1 {[%clk 0:01:35.8]} 22... Rb4 {[%clk 0:01:46]} 23. Re3 {[%clk
0:01:30.9]} 23... Rab8 {[%clk 0:01:44.6]} 24. Rae1 {[%clk 0:01:28.3]} 24... Rxb3
{[%clk 0:01:07.4]} 25. Qxb3 {[%clk 0:01:29.2]} 25... Rxb3 {[%clk 0:01:07.7]} 26.
Rxb3 {[%clk 0:01:29.1]} 26... c4 {[%clk 0:01:08.3]} 27. Rc3 {[%clk 0:01:19.9]}
27... Qa5 {[%clk 0:00:59.8]} 28. Rec1 {[%clk 0:01:20.3]} 28... Qxa4 {[%clk
0:00:59.1]} 29. Rxc4 {[%clk 0:01:20.7]} 29... Qa5 {[%clk 0:00:59.1]} 30. Rd1
{[%clk 0:01:12.2]} 30... Kg7 {[%clk 0:00:58.3]} 31. h4 {[%clk 0:01:11.3]} 31...
h5 {[%clk 0:00:58.1]} 32. Re4 {[%clk 0:01:08.7]} 32... Kf6 {[%clk 0:00:57.4]}
33. g3 {[%clk 0:01:03]} 33... Qa2 {[%clk 0:00:54.6]} 34. Kg2 {[%clk 0:00:57.4]}
34... Qa3 {[%clk 0:00:50.2]} 35. Re3 {[%clk 0:00:55.1]} 35... Qb4 {[%clk
0:00:48.5]} 36. Rdd3 {[%clk 0:00:54.7]} 36... Qc5 {[%clk 0:00:40.5]} 37. Re4
{[%clk 0:00:52.8]} 37... e5 {[%clk 0:00:34.6]} 38. dxe6 {[%clk 0:00:33.9]} 38...
fxe6 {[%clk 0:00:35.5]} 39. Red4 {[%clk 0:00:32.4]} 39... d5 {[%clk 0:00:33.1]}
40. f4 {[%clk 0:00:32]} 40... Qc2+ {[%clk 0:00:30.3]} 41. Rd2 {[%clk 0:00:29.8]}
41... Qc3 {[%clk 0:00:29]} 42. R2d3 {[%clk 0:00:29.6]} 42... Qa1 {[%clk
0:00:29.2]} 43. Rd2 {[%clk 0:00:29.7]} 43... Kf5 {[%clk 0:00:29.2]} 44. R2d3
{[%clk 0:00:25.1]} 44... Kg4 {[%clk 0:00:24.8]} 45. Rd2 {[%clk 0:00:18.7]} 45...
Qc1 {[%clk 0:00:10.7]} 46. R4d3 {[%clk 0:00:19]} 46... Qe1 {[%clk 0:00:10.4]}
47. Kh2 {[%clk 0:00:15.2]} 47... Qf1 {[%clk 0:00:06.2]} 48. Rd1 {[%clk
0:00:08.1]} 48... Qe2+ {[%clk 0:00:02.4]} 49. Kg1 {[%clk 0:00:08.6]} 49... Qe4
{[%clk 0:00:02.6]} 50. R1d2 {[%clk 0:00:07.8]} 50... Qb4 {[%clk 0:00:02.1]} 51.
Rd1 {[%clk 0:00:07.5]} 51... Qb6+ {[%clk 0:00:02.5]} 52. Kg2 {[%clk 0:00:06.6]}
52... Qb2+ {[%clk 0:00:03.4]} 53. R1d2 {[%clk 0:00:06.4]} 53... Qb7 {[%clk
0:00:03.8]} 54. Rf2 {[%clk 0:00:06.6]} 54... Kf5 {[%clk 0:00:04.1]} 55. Rfd2
{[%clk 0:00:05.9]} 55... Qb4 {[%clk 0:00:04]} 56. Kh2 {[%clk 0:00:06.6]} 56...
Ke4 {[%clk 0:00:03.4]} 57. Rd1 {[%clk 0:00:07.1]} 57... Qc4 {[%clk 0:00:02]} 58.
R3d2 {[%clk 0:00:06.4]} 58... Kf5 {[%clk 0:00:02.3]} 59. Re1 {[%clk 0:00:06.2]}
59... Kf6 {[%clk 0:00:02.3]} 60. Rde2 {[%clk 0:00:06]} 60... d4 {[%clk
0:00:02.1]} 61. Re4 {[%clk 0:00:05.4]} 61... Qd5 {[%clk 0:00:02.5]} 62. Kg1
{[%clk 0:00:02.7]} 62... Qd6 {[%clk 0:00:02.7]} 63. Rxe6+ {[%clk 0:00:03]} 63...
Qxe6 {[%clk 0:00:02.8]} 64. Rxe6+ {[%clk 0:00:03.9]} 64... Kxe6 {[%clk
0:00:03.7]} 65. Kf2 {[%clk 0:00:04.3]} 65... Kf6 {[%clk 0:00:03.6]} 66. Ke2
{[%clk 0:00:04.4]} 66... Kf5 {[%clk 0:00:03.2]} 67. Kd3 {[%clk 0:00:04.1]} 67...
Kg4 {[%clk 0:00:03.6]} 68. Kxd4 {[%clk 0:00:05]} 68... Kxg3 {[%clk 0:00:04.1]}
69. Ke4 {[%clk 0:00:05.6]} 69... Kxh4 {[%clk 0:00:04.2]} 70. Kf3 {[%clk
0:00:05.2]} 70... Kh3 {[%clk 0:00:04.3]} 71. f5 {[%clk 0:00:03.7]} 71... gxf5
{[%clk 0:00:04.1]} 72. Kf4 {[%clk 0:00:04.1]} 72... h4 {[%clk 0:00:03.7]} 73.
Kf3 {[%clk 0:00:05]} 73... Kh2 {[%clk 0:00:03.2]} 74. Kf2 {[%clk 0:00:05.4]}
74... h3 {[%clk 0:00:03.4]} 75. Kf3 {[%clk 0:00:04.8]} 75... Kg1 {[%clk
0:00:03.8]} 0-1

[Event "*** Titled Tuesday Blitz"]
[Site "Chess.com"]
[Date "2020.03.03"]
[Round "3"]
[White "LucaBrasi1968"]
[Black "VladimirBelous"]
[Result "0-1"]
[WhiteElo "2477"]
[BlackElo "2779"]
[TimeControl "180+1"]
[EndTime "13:32:11 PST"]
[Termination "VladimirBelous won by resignation"]

1. d4 {[%clk 0:03:00.9]} 1... Nf6 {[%clk 0:02:59.9]} 2. Nf3 {[%clk 0:03:00.5]}
2... g6 {[%clk 0:03:00.4]} 3. Bg5 {[%clk 0:03:00.1]} 3... Ne4 {[%clk 0:02:58.1]}
4. Bf4 {[%clk 0:02:59.2]} 4... Bg7 {[%clk 0:02:58.2]} 5. e3 {[%clk 0:02:59]}
5... O-O {[%clk 0:02:57.7]} 6. Bd3 {[%clk 0:02:58.2]} 6... d5 {[%clk 0:02:57.6]}
7. Nbd2 {[%clk 0:02:56.9]} 7... Nxd2 {[%clk 0:02:52.1]} 8. Qxd2 {[%clk
0:02:56.4]} 8... c5 {[%clk 0:02:52.2]} 9. c3 {[%clk 0:02:56.3]} 9... Nc6 {[%clk
0:02:50.3]} 10. O-O {[%clk 0:02:55.7]} 10... Bg4 {[%clk 0:02:41.1]} 11. Be2
{[%clk 0:02:45.8]} 11... Qb6 {[%clk 0:02:22.6]} 12. h3 {[%clk 0:02:44.4]} 12...
Bf5 {[%clk 0:02:21.4]} 13. Rfd1 {[%clk 0:02:37]} 13... Rfd8 {[%clk 0:02:20.8]}
14. Nh4 {[%clk 0:02:24.2]} 14... Be6 {[%clk 0:02:15.2]} 15. Nf3 {[%clk
0:02:23.9]} 15... Rac8 {[%clk 0:02:13.1]} 16. Bg3 {[%clk 0:02:20.9]} 16... Bf5
{[%clk 0:02:01.8]} 17. Nh4 {[%clk 0:02:20]} 17... Be6 {[%clk 0:01:44.9]} 18. Nf3
{[%clk 0:02:19.5]} 18... a6 {[%clk 0:01:45.4]} 19. Bd3 {[%clk 0:02:09.1]} 19...
f6 {[%clk 0:01:41.3]} 20. Be2 {[%clk 0:01:47.4]} 20... Bf7 {[%clk 0:01:38.2]}
21. Rac1 {[%clk 0:01:27.5]} 21... h6 {[%clk 0:01:23.8]} 22. Bh2 {[%clk 0:01:20]}
22... e5 {[%clk 0:01:23.5]} 23. dxe5 {[%clk 0:01:18]} 23... fxe5 {[%clk
0:01:24.4]} 24. Bg3 {[%clk 0:01:01.3]} 24... e4 {[%clk 0:01:24.1]} 25. Nh2
{[%clk 0:01:00.6]} 25... h5 {[%clk 0:01:07.6]} 26. Qc2 {[%clk 0:00:59.4]} 26...
Bf6 {[%clk 0:01:06.8]} 27. Nf1 {[%clk 0:00:57.6]} 27... Be6 {[%clk 0:01:01.9]}
28. c4 {[%clk 0:00:56.7]} 28... d4 {[%clk 0:00:45.4]} 29. Qxe4 {[%clk
0:00:55.3]} 29... Bf5 {[%clk 0:00:45.6]} 30. Qf3 {[%clk 0:00:55.5]} 30... d3
{[%clk 0:00:45.2]} 31. Bxd3 {[%clk 0:00:50.3]} 31... Rxd3 {[%clk 0:00:36]} 32.
Rxd3 {[%clk 0:00:49.7]} 32... Qxb2 {[%clk 0:00:35.5]} 33. Rcd1 {[%clk
0:00:39.9]} 33... Bxd3 {[%clk 0:00:35.6]} 34. Rxd3 {[%clk 0:00:34.8]} 34... Rf8
{[%clk 0:00:36.2]} 35. Qd5+ {[%clk 0:00:32.6]} 35... Rf7 {[%clk 0:00:34.8]} 36.
Qe6 {[%clk 0:00:29.7]} 36... Kg7 {[%clk 0:00:29.8]} 37. Rd7 {[%clk 0:00:28.5]}
37... Rxd7 {[%clk 0:00:29.8]} 38. Qxd7+ {[%clk 0:00:28.7]} 38... Kh6 {[%clk
0:00:26.4]} 39. Bf4+ {[%clk 0:00:28.4]} 39... g5 {[%clk 0:00:26.3]} 40. Bd6
{[%clk 0:00:28.5]} 40... Qxa2 {[%clk 0:00:17.5]} 41. Ng3 {[%clk 0:00:28.2]}
41... Qb1+ {[%clk 0:00:16.9]} 42. Kh2 {[%clk 0:00:27.6]} 42... h4 {[%clk
0:00:16.7]} 43. Nf5+ {[%clk 0:00:27.2]} 43... Kg6 {[%clk 0:00:16.8]} 44. Ne7+
{[%clk 0:00:17.4]} 44... Nxe7 {[%clk 0:00:14.7]} 45. Bxe7 {[%clk 0:00:17.6]}
45... Qf5 {[%clk 0:00:13.1]} 46. Qd6 {[%clk 0:00:15.2]} 46... Qe5+ {[%clk
0:00:12.8]} 47. Qxe5 {[%clk 0:00:14.5]} 47... Bxe5+ {[%clk 0:00:13.7]} 48. Kg1
{[%clk 0:00:14.2]} 48... b6 {[%clk 0:00:13.3]} 49. Kf1 {[%clk 0:00:14.4]} 49...
Kf5 {[%clk 0:00:11.9]} 50. Ke2 {[%clk 0:00:14.1]} 50... Bf6 {[%clk 0:00:12.2]}
51. Bd6 {[%clk 0:00:13.3]} 51... Ke6 {[%clk 0:00:12.4]} 52. Bf8 {[%clk
0:00:13.2]} 52... Be5 {[%clk 0:00:10.8]} 53. Kd3 {[%clk 0:00:13.3]} 53... a5
{[%clk 0:00:09.5]} 54. Kc2 {[%clk 0:00:10.6]} 54... Kf7 {[%clk 0:00:08.6]} 55.
Bh6 {[%clk 0:00:09.7]} 55... Kg6 {[%clk 0:00:09]} 56. Bf8 {[%clk 0:00:09.2]}
56... Kf7 {[%clk 0:00:08.6]} 57. Bh6 {[%clk 0:00:09.1]} 57... Bf6 {[%clk
0:00:09.5]} 58. f4 {[%clk 0:00:08.6]} 58... Kg6 {[%clk 0:00:10]} 59. fxg5 {[%clk
0:00:06.4]} 59... Bxg5 {[%clk 0:00:10.4]} 60. Bf8 {[%clk 0:00:05.8]} 60... Kf7
{[%clk 0:00:10.2]} 61. Bd6 {[%clk 0:00:05.9]} 61... Bd8 {[%clk 0:00:10.5]} 62.
Bf4 {[%clk 0:00:05.4]} 62... Ke6 {[%clk 0:00:11]} 63. Kb3 {[%clk 0:00:06.3]}
63... Kf5 {[%clk 0:00:10.2]} 64. Ka4 {[%clk 0:00:07.2]} 64... Bg5 {[%clk
0:00:10.7]} 65. Kb5 {[%clk 0:00:08.1]} 65... Bxf4 {[%clk 0:00:11]} 66. exf4
{[%clk 0:00:08.4]} 66... Kxf4 {[%clk 0:00:11.9]} 67. Kxb6 {[%clk 0:00:09.3]}
67... a4 {[%clk 0:00:12]} 68. Kxc5 {[%clk 0:00:10.2]} 68... a3 {[%clk
0:00:12.9]} 69. Kd6 {[%clk 0:00:11.1]} 69... a2 {[%clk 0:00:13.8]} 70. c5 {[%clk
0:00:11.9]} 70... a1=Q {[%clk 0:00:14.2]} 71. c6 {[%clk 0:00:12.8]} 71... Qd4+
{[%clk 0:00:14.7]} 72. Ke7 {[%clk 0:00:12.8]} 72... Kg3 {[%clk 0:00:14.7]} 73.
c7 {[%clk 0:00:12.5]} 73... Qc5+ {[%clk 0:00:15.3]} 74. Kd7 {[%clk 0:00:12.5]}
74... Qd5+ {[%clk 0:00:15.1]} 75. Ke7 {[%clk 0:00:12.5]} 75... Qc6 {[%clk
0:00:15.1]} 76. Kd8 {[%clk 0:00:12.8]} 76... Qd6+ {[%clk 0:00:15.7]} 77. Kc8
{[%clk 0:00:13.1]} 77... Kxg2 {[%clk 0:00:16.6]} 78. Kb8 {[%clk 0:00:13.5]}
78... Kxh3 {[%clk 0:00:16.4]} 0-1